bitfinex/quotes_SOLUSD_20220208
["timestamp","ask_amount","ask_price","bid_price","bid_amount"]
[1644327358339,707.40425056,112.27,112.24,17.523]
[1644327358547,707.40425056,112.26,112.24,23.523]
[1644327358746,707.40425056,112.25,112.24,23.523]
[1644327358939,620.02208798,112.25,112.24,23.523]
[1644327359144,36.46628856,112.25,112.24,42.42127977]
[1644327359345,15.8152393,112.3,112.25,109.33]
[1644327359550,15.8152393,112.3,112.26,12.82]
[1644327359745,668.25025012,112.29,112.26,13.07]
[1644327360247,668.25025012,112.29,112.26,0.25]
[1644327360444,705.51659784,112.29,112.26,0.25]
[1644327360643,668.25025012,112.28,112.24,24.35847977]
[1644327360844,15.8152393,112.3,112.24,5.53847977]
[1644327361245,31.28719479,112.3,112.24,5.53847977]
[1644327361650,37.28719479,112.3,112.24,5.53847977]
[1644327361947,706.11376414,112.29,112.24,5.53847977]
[1644327362147,117.0,112.27,112.18,12.844]
[1644327362346,172.96504079,112.27,112.2,0.024]
[1644327362549,2.10775549,112.26,112.19,0.024]
[1644327362855,117.0,112.27,112.18,12.82]
[1644327363049,48.68545549,112.29,112.19,0.024]
[1644327363251,2.10775549,112.27,112.19,0.024]
[1644327363848,46.5777,112.29,112.19,0.024]
[1644327363849,48.68545549,112.29,112.19,0.024]
[1644327364248,45.09907556,112.28,112.19,0.024]
[1644327364647,45.34907556,112.28,112.19,0.024]
[1644327364848,13.3674,112.27,112.19,0.024]
[1644327366751,13.3674,112.27,112.19,13.3902]
[1644327367150,13.3674,112.27,112.19,19.6402]
[1644327367370,0.25,112.28,112.19,19.6402]
[1644327367549,0.25,112.28,112.2,0.024]
[1644327367950,6.0,112.29,112.2,13.3893]
[1644327368156,62.9953393,112.3,112.2,19.3893]
[1644327368351,6.0,112.29,112.2,19.6393]
[1644327368752,62.9953393,112.3,112.2,19.6153]
[1644327368951,68.9953393,112.3,112.2,19.6153]
[1644327369253,69.2453393,112.3,112.2,19.6153]
[1644327369752,82.6102393,112.3,112.2,19.6153]
[1644327370352,80.0852,112.3,112.21,1.26739641]
[1644327370553,80.0852,112.3,112.21,14.63089641]
[1644327370857,66.4703,112.3,112.21,14.88089641]
[1644327371253,66.4703,112.3,112.21,27.70089641]
[1644327371956,19.2902,112.3,112.21,81.03089641]
[1644327372157,19.2902,112.3,112.21,87.03089641]
[1644327373361,19.2902,112.3,112.21,33.70089641]
[1644327376081,19.5402,112.3,112.21,33.70089641]
[1644327376681,43.6818,112.3,112.21,33.70089641]
[1644327377182,43.4318,112.3,112.21,33.70089641]
[1644327377387,19.2902,112.3,112.21,87.03089641]
[1644327377587,13.2902,112.3,112.24,13.3597]
[1644327377786,13.2902,112.3,112.24,26.4297]
[1644327377987,13.2902,112.3,112.24,13.07]
[1644327378192,13.2902,112.3,112.24,12.82]
[1644327378389,13.2902,112.3,112.22,1.26739641]
[1644327378592,13.2902,112.3,112.22,33.69939641]
[1644327378782,13.2902,112.3,112.22,33.44939641]
[1644327378990,15.39795549,112.3,112.22,18.82]
[1644327379384,13.2902,112.3,112.22,18.82]
[1644327379687,26.6541,112.3,112.22,32.1834]
[1644327379885,13.2902,112.3,112.22,33.45079641]
[1644327380689,13.2902,112.3,112.22,33.70079641]
[1644327380896,13.2902,112.3,112.23,1.90322181]
[1644327381096,13.2902,112.3,112.25,13.3586]
[1644327381290,13.2902,112.3,112.25,13.6086]
[1644327381488,13.2902,112.3,112.25,19.6086]
[1644327381690,13.2902,112.3,112.25,13.6086]
[1644327382090,13.2902,112.3,112.25,0.25]
[1644327382288,13.2902,112.3,112.23,14.08739641]
[1644327382289,13.2902,112.3,112.23,32.1813]
[1644327382790,13.2902,112.3,112.23,33.44869641]
[1644327382989,13.2902,112.3,112.23,86.77869641]
[1644327383394,13.2902,112.3,112.23,91.23169641]
[1644327383591,13.2902,112.3,112.23,91.48169641]
[1644327383993,13.2902,112.3,112.23,37.90169641]
[1644327384193,13.5402,112.3,112.23,37.90169641]
[1644327384397,15.64795549,112.3,112.23,23.273]
[1644327384594,21.39795549,112.3,112.23,23.273]
[1644327384794,13.2902,112.3,112.23,23.273]
[1644327384996,13.2902,112.3,112.23,17.273]
[1644327385195,13.2902,112.3,112.23,24.54039641]
[1644327385396,13.2902,112.3,112.23,18.82]
[1644327385900,13.2902,112.3,112.23,32.1821]
[1644327386198,4.27505995,112.3,112.24,53.33]
[1644327386398,127.92586574,112.36,112.25,66.15]
[1644327386600,13.5588,112.36,112.25,20.08739641]
[1644327386797,113.1,112.35,112.26,1.26739641]
[1644327386998,48.22222549,112.33,112.27,12.82]
[1644327387198,767.71055056,112.32,112.27,12.82]
[1644327387398,767.71055056,112.31,112.23,14.08739641]
[1644327387600,55.58415549,112.32,112.23,14.08739641]
[1644327387799,55.58415549,112.32,112.22,1.26739641]
[1644327387800,2.10775549,112.31,112.22,1.26739641]
[1644327388000,2.10775549,112.31,112.22,14.63059641]
[1644327388199,2.10775549,112.34,112.22,33.45059641]
[1644327388406,13.5588,112.36,112.26,1.26739641]
[1644327388601,767.71055056,112.35,112.28,1.26739641]
[1644327388799,767.71055056,112.35,112.29,12.82]
[1644327389200,767.71055056,112.35,112.29,13.07]
[1644327389500,767.71055056,112.35,112.3,13.3518]
[1644327389704,805.22716533,112.35,112.27,57.3353]
[1644327389900,767.71055056,112.34,112.27,12.82]
[1644327390099,45.57323686,112.33,112.25,1.26739641]
[1644327390305,69.09573686,112.33,112.24,14.08739641]
[1644327390706,69.09573686,112.33,112.24,12.82]
[1644327391102,23.5225,112.33,112.24,12.82]
[1644327391301,23.5225,112.33,112.24,27.44849641]
[1644327391502,23.5225,112.33,112.24,27.69849641]
[1644327391702,23.5225,112.33,112.24,27.44849641]
[1644327391905,23.5225,112.33,112.28,1.5348463]
[1644327392103,108.0,112.32,112.28,4.63e-05]
[1644327392304,875.71055056,112.32,112.28,4.63e-05]
[1644327392505,781.07325056,112.31,112.28,4.63e-05]
[1644327392704,767.71055056,112.3,112.28,4.63e-05]
[1644327392904,767.71055056,112.32,112.28,4.63e-05]
[1644327393112,767.71050426,112.31,112.25,13.3609]
[1644327393308,23.7725,112.33,112.25,13.6109]
[1644327393704,71.23681271,112.33,112.25,13.6109]
[1644327393906,71.23681271,112.33,112.23,1.26739641]
[1644327393907,13.3616,112.32,112.23,1.26739641]
[1644327394207,804.60973178,112.31,112.23,6.0]
[1644327394407,767.71050456,112.3,112.22,11.71939641]
[1644327394807,47.9209,112.31,112.22,11.71939641]
[1644327395007,47.9209,112.31,112.23,1.26739641]
[1644327395206,47.9209,112.31,112.23,7.51739641]
[1644327395807,47.9209,112.31,112.23,60.84739641]
[1644327396507,47.9209,112.31,112.24,1.26739641]
[1644327396707,47.9209,112.31,112.24,1.51739641]
[1644327397911,47.9209,112.31,112.24,14.87569641]
[1644327398307,47.9209,112.31,112.24,20.87569641]
[1644327399009,47.9209,112.31,112.24,7.51739641]
[1644327399608,47.9209,112.31,112.24,7.26739641]
[1644327400009,47.9209,112.31,112.23,14.08739641]
[1644327400210,47.9209,112.31,112.23,20.08739641]
[1644327400411,47.9209,112.31,112.23,14.08739641]
[1644327400809,47.9209,112.31,112.24,1.26739641]
[1644327401434,92.4322707,112.31,112.23,7.26739641]
[1644327401631,98.4322707,112.31,112.23,1.26739641]
[1644327401830,53.9209,112.31,112.23,1.26739641]
[1644327402034,67.2834,112.31,112.23,1.26739641]
[1644327402232,61.2834,112.31,112.23,1.51739641]
[1644327402835,45.25473632,112.3,112.23,1.26739641]
[1644327403233,48.54867932,112.28,112.22,1.26739641]
[1644327403433,767.71050456,112.27,112.22,1.26739641]
[1644327403635,56.27865549,112.31,112.22,1.26739641]
[1644327403835,767.71050456,112.3,112.22,1.26739641]
[1644327404040,56.27865549,112.31,112.21,1.29139641]
[1644327404240,15.47275549,112.29,112.21,1.29139641]
[1644327404440,48.13740534,112.28,112.21,0.024]
[1644327404640,100.83325549,112.31,112.21,0.024]
[1644327404836,100.83325549,112.31,112.21,1.26739641]
[1644327405043,100.83325549,112.31,112.21,1.29139641]
[1644327405246,13.3646,112.3,112.21,1.29139641]
[1644327405639,43.07577845,112.29,112.21,1.29139641]
[1644327405839,43.07577845,112.29,112.21,1.54139641]
[1644327406238,43.07577845,112.29,112.21,0.274]
[1644327406439,43.07577845,112.29,112.21,0.024]
[1644327406742,56.44077845,112.29,112.21,0.024]
[1644327406940,13.365,112.29,112.21,1.29139641]
[1644327407339,13.365,112.29,112.21,1.54139641]
[1644327407740,47.9209,112.31,112.22,1.26739641]
[1644327408141,47.9209,112.31,112.22,1.51739641]
[1644327408552,95.62507877,112.31,112.22,1.51739641]
[1644327408744,13.3635,112.3,112.22,1.51739641]
[1644327409245,13.3635,112.3,112.22,14.88049641]
[1644327410542,13.3635,112.3,112.22,13.6131]
[1644327410745,26.442,112.3,112.22,14.88049641]
[1644327410942,26.442,112.3,112.22,13.3631]
[1644327411747,26.442,112.3,112.22,13.6131]
[1644327412145,26.442,112.3,112.22,13.3631]
[1644327412945,13.0785,112.3,112.22,66.6931]
[1644327413144,13.0785,112.3,112.22,82.69413012]
[1644327413544,13.0785,112.3,112.22,82.94413012]
[1644327413745,13.3285,112.3,112.22,82.94413012]
[1644327414045,13.3285,112.3,112.22,88.94413012]
[1644327414347,13.3285,112.3,112.23,1.26739641]
[1644327414544,13.3285,112.3,112.24,12.82]
[1644327414746,13.3285,112.3,112.24,13.07]
[1644327414944,13.0785,112.3,112.24,13.07]
[1644327415246,13.0785,112.3,112.24,75.58103012]
[1644327415546,13.0785,112.3,112.24,22.25103012]
[1644327415746,13.0785,112.3,112.24,35.61103012]
[1644327415945,13.0785,112.3,112.24,32.43]
[1644327416144,13.0785,112.3,112.24,19.07]
[1644327416346,13.0785,112.3,112.24,13.07]
[1644327417945,13.0785,112.3,112.24,72.4]
[1644327418145,13.0785,112.3,112.24,91.47999641]
[1644327420054,0.03795942,112.33,112.24,93.39363012]
[1644327420248,0.03795942,112.34,112.26,1.26739641]
[1644327420449,0.03795942,112.35,112.29,53.33]
[1644327420650,0.03795942,112.37,112.29,12.82]
[1644327420849,1.30502516,112.39,112.29,13.07]
[1644327421051,0.03795942,112.37,112.29,74.31363371]
[1644327421249,1.30502516,112.39,112.29,74.31363371]
[1644327421450,0.03795942,112.37,112.29,74.31363371]
[1644327421649,1.26706574,112.4,112.29,88.93303012]
[1644327421849,0.03795942,112.39,112.29,88.93303012]
[1644327422151,0.03795942,112.4,112.29,88.93303012]
[1644327422549,0.03795942,112.4,112.29,249.24303012]
[1644327422948,0.03795942,112.4,112.3,1.26739641]
[1644327423153,0.03795942,112.4,112.32,13.3471]
[1644327423355,39.03846801,112.42,112.33,66.15]
[1644327423650,1.30502516,112.42,112.33,72.15]
[1644327423849,1.30502516,112.42,112.33,72.4]
[1644327424652,48.96763868,112.42,112.33,72.4]
[1644327424850,1.30502516,112.42,112.33,85.7466]
[1644327425050,0.03795942,112.42,112.33,85.7466]
[1644327425251,0.03795942,112.42,112.33,97.0286]
[1644327425451,0.03795942,112.43,112.35,53.33]
[1644327425651,0.03795942,112.45,112.37,53.33]
[1644327425851,0.03795942,112.45,112.38,12.82]
[1644327426050,0.03795942,112.46,112.39,53.33]
[1644327426254,0.03795942,112.46,112.4,12.82]
[1644327426450,39.57048867,112.47,112.4,12.82]
[1644327427254,39.82048867,112.47,112.4,12.82]
[1644327427654,39.82048867,112.47,112.4,13.07]
[1644327428554,39.82048867,112.47,112.4,19.07]
[1644327429357,39.82048867,112.47,112.4,18.82]
[1644327429553,45.82048867,112.47,112.4,18.82]
[1644327429758,45.82048867,112.47,112.4,12.82]
[1644327430155,39.82048867,112.47,112.4,12.82]
[1644327430456,39.57048867,112.47,112.37,12.82]
[1644327430655,0.03795942,112.46,112.36,4.447]
[1644327430856,4.448,112.45,112.34,12.82]
[1644327431153,42.11470701,112.42,112.34,12.82]
[1644327431353,42.15266643,112.42,112.34,12.82]
[1644327431553,42.11470701,112.42,112.34,12.82]
[1644327431753,42.36470701,112.42,112.34,12.82]
[1644327431954,42.36470701,112.42,112.29,4.449]
[1644327432154,49.43025942,112.41,112.3,12.82]
[1644327432457,40.17815109,112.4,112.3,12.82]
[1644327432658,0.03795942,112.39,112.3,12.82]
[1644327433255,13.39185942,112.39,112.3,13.07]
[1644327433456,36.73219916,112.38,112.3,13.07]
[1644327433653,36.77015858,112.38,112.3,13.07]
[1644327434959,50.12525858,112.38,112.3,13.07]
[1644327435158,50.08729916,112.38,112.3,13.07]
[1644327435357,50.33729916,112.38,112.3,13.07]
[1644327435957,50.08729916,112.38,112.3,13.07]
[1644327436158,36.73219916,112.38,112.3,13.07]
[1644327437561,36.77015858,112.38,112.3,13.07]
[1644327438360,0.03795942,112.38,112.3,66.4]
[1644327438561,23.8402,112.39,112.3,66.4]
[1644327438759,0.03795942,112.38,112.3,66.4]
[1644327438959,23.8402,112.39,112.3,66.4]
[1644327439361,45.95460605,112.38,112.3,66.4]
[1644327439561,45.95460605,112.38,112.3,72.4]
[1644327439762,45.99256547,112.38,112.3,72.4]
[1644327440065,51.99256547,112.38,112.3,13.07]
[1644327440261,65.59796547,112.38,112.3,12.82]
[1644327440464,67.70572096,112.38,112.28,12.82]
[1644327440761,44.93761644,112.36,112.24,12.82]
[1644327440961,0.03795942,112.35,112.24,12.82]
[1644327441661,43.76029932,112.34,112.24,12.82]
[1644327442161,0.03795942,112.33,112.24,12.82]
[1644327443764,13.39905942,112.33,112.24,12.82]
[1644327443966,48.74319725,112.32,112.22,66.15]
[1644327444163,48.74319725,112.32,112.22,18.82]
[1644327444164,96.86519725,112.32,112.22,18.82]
[1644327444365,96.86519725,112.32,112.22,12.82]
[1644327444366,109.62595274,112.32,112.22,12.82]
[1644327444565,115.62595274,112.32,112.22,12.82]
[1644327444966,113.51819725,112.32,112.22,12.82]
[1644327445366,13.363,112.31,112.22,12.82]
[1644327445567,54.122,112.32,112.23,1.91362865]
[1644327445766,48.122,112.32,112.23,7.91362865]
[1644327445966,48.122,112.32,112.23,14.73362865]
[1644327446167,48.122,112.32,112.23,12.82]
[1644327446568,91.19482109,112.32,112.23,12.82]
[1644327446768,91.44482109,112.32,112.23,13.07]
[1644327446969,48.122,112.32,112.23,66.4]
[1644327447168,0.03795942,112.36,112.24,1.91362865]
[1644327447368,48.45705942,112.36,112.25,53.33]
[1644327447568,54.45705942,112.36,112.25,72.15]
[1644327447771,54.45705942,112.36,112.26,1.91362865]
[1644327447971,96.1170639,112.36,112.26,1.91362865]
[1644327448172,96.1170639,112.36,112.26,0.25]
[1644327448370,109.4741639,112.36,112.26,0.25]
[1644327448973,109.4741639,112.36,112.27,1.91362865]
[1644327449171,109.43620448,112.36,112.26,4.7]
[1644327449371,0.03795942,112.35,112.26,4.45]
[1644327449574,42.30915062,112.34,112.26,4.45]
[1644327450588,55.66935062,112.34,112.26,4.45]
[1644327450789,55.66935062,112.34,112.26,4.7]
[1644327451589,55.66935062,112.34,112.26,4.45]
[1644327452692,55.66935062,112.34,112.26,4.7]
[1644327452895,55.66935062,112.34,112.26,0.25]
[1644327453298,55.66935062,112.34,112.25,13.07]
[1644327453494,61.66935062,112.34,112.25,13.07]
[1644327454295,6.0,112.34,112.25,66.4]
[1644327454494,6.0,112.34,112.26,1.91362865]
[1644327454698,6.0,112.34,112.26,2.16362865]
[1644327454894,0.03795942,112.35,112.26,2.16362865]
[1644327455094,0.03795942,112.35,112.26,0.25]
[1644327455296,0.03795942,112.35,112.26,2.16362865]
[1644327455696,0.03795942,112.35,112.27,53.33]
[1644327455895,97.36070347,112.36,112.27,53.33]
[1644327456096,0.03795942,112.35,112.27,59.58]
[1644327456496,97.36070347,112.36,112.27,59.58]
[1644327456698,0.03795942,112.35,112.27,59.58]
[1644327456898,97.39866289,112.36,112.27,59.33]
[1644327457097,97.36070347,112.36,112.27,59.33]
[1644327457298,110.71760347,112.36,112.27,6.0]
[1644327457700,104.96760347,112.36,112.26,72.15]
[1644327457898,0.03795942,112.35,112.26,18.82]
[1644327458298,0.03795942,112.35,112.26,19.07]
[1644327459700,13.39615942,112.35,112.26,13.07]
[1644327460001,35.9129493,112.34,112.24,12.82]
[1644327460201,0.03795942,112.33,112.24,18.82]
[1644327460402,0.03795942,112.33,112.24,6.0]
[1644327460604,0.03795942,112.33,112.22,76.602]
[1644327460801,40.88061298,112.32,112.22,76.602]
[1644327461001,77.48911298,112.32,112.22,77.86939641]
[1644327461201,83.48911298,112.32,112.22,76.602]
[1644327461402,77.48911298,112.32,112.22,76.602]
[1644327462201,77.48911298,112.32,112.22,76.852]
[1644327462605,83.48911298,112.32,112.22,76.852]
[1644327463104,77.48911298,112.32,112.22,76.852]
[1644327464305,77.48911298,112.32,112.22,73.66739641]
[1644327464711,77.73911298,112.32,112.22,73.66739641]
[1644327465711,64.37711298,112.32,112.22,73.66739641]
[1644327466105,0.25,112.32,112.22,87.02659641]
[1644327466307,0.03795942,112.33,112.23,3.18102506]
[1644327466506,0.03795942,112.34,112.23,3.18102506]
[1644327466707,0.03795942,112.35,112.25,53.33]
[1644327466908,0.03795942,112.35,112.25,66.15]
[1644327467115,0.03795942,112.35,112.25,73.66739641]
[1644327467316,0.03795942,112.35,112.26,1.91362865]
[1644327467509,0.03795942,112.35,112.27,66.15]
[1644327467710,37.32835261,112.36,112.27,66.15]
[1644327467711,37.32835261,112.36,112.27,72.4]
[1644327467916,0.03795942,112.35,112.27,72.4]
[1644327468114,37.36631203,112.36,112.27,19.07]
[1644327468319,37.32835261,112.36,112.27,19.07]
[1644327468520,37.36631203,112.36,112.27,19.07]
[1644327468726,43.36631203,112.36,112.27,19.07]
[1644327468913,44.63337777,112.36,112.27,19.07]
[1644327469315,57.98977777,112.36,112.27,18.82]
[1644327469715,1.26706574,112.35,112.27,18.82]
[1644327469913,35.84643897,112.34,112.27,12.82]
[1644327470318,35.84643897,112.34,112.27,18.82]
[1644327470717,35.84643897,112.34,112.27,19.07]
[1644327470920,35.84643897,112.34,112.27,13.07]
[1644327472219,49.20513897,112.34,112.27,13.07]
[1644327473522,49.45513897,112.34,112.27,13.07]
[1644327473819,49.45513897,112.34,112.25,12.82]
[1644327474019,0.03795942,112.33,112.24,1.26739641]
[1644327474220,13.3621,112.31,112.23,1.26739641]
[1644327474418,53.4656065,112.31,112.23,1.26739641]
[1644327474620,53.4656065,112.31,112.22,14.08739641]
[1644327474818,24.99832516,112.33,112.14,44.5491]
[1644327474819,19.0,112.28,112.14,44.5491]
[1644327475019,19.0,112.28,112.18,2.53543917]
[1644327475020,0.31479763,112.24,112.18,2.53543917]
[1644327475220,150.440281,112.23,112.1,13.95995451]
[1644327475419,13.3771,112.2,112.11,6.5589]
[1644327475619,12.82,112.19,112.11,6.5589]
[1644327475819,34.72269256,112.17,112.11,6.5589]
[1644327476020,34.72269256,112.17,112.1,10.155]
[1644327476021,43.14669256,112.17,112.1,10.155]
[1644327476227,8.424,112.17,112.1,10.155]
[1644327476721,27.244,112.17,112.1,10.155]
[1644327477220,118.0,112.15,112.01,15.98737249]
[1644327477427,13.3878,112.12,112.01,13.4498]
[1644327477620,37.5968,112.12,112.01,13.4498]
[1644327477822,24.209,112.12,112.01,13.4498]
[1644327478020,24.209,112.12,112.01,26.8329]
[1644327478221,46.21913314,112.11,112.02,7.66422271]
[1644327478420,11.389,112.12,112.03,4.461]
[1644327478620,11.389,112.12,112.02,7.66422271]
[1644327478822,11.389,112.12,112.02,13.91422271]
[1644327479723,11.389,112.12,112.02,27.29892271]
[1644327479923,11.389,112.12,112.03,4.461]
[1644327480124,11.389,112.12,112.03,10.461]
[1644327480326,11.389,112.12,112.03,10.711]
[1644327480924,11.389,112.12,112.04,0.6164528]
[1644327481825,8.889,112.12,112.04,13.9994528]
[1644327482226,8.889,112.12,112.04,19.9994528]
[1644327483333,8.889,112.12,112.04,20.2494528]
[1644327485046,8.889,112.12,112.04,33.7530528]
[1644327485447,8.889,112.12,112.04,20.2494528]
[1644327485649,43.7168532,112.11,112.04,20.2494528]
[1644327485847,43.7168532,112.11,112.04,6.6164528]
[1644327486049,43.7168532,112.11,112.04,0.6164528]
[1644327486249,43.7168532,112.11,112.04,6.0]
[1644327486453,8.889,112.12,112.04,6.0]
[1644327486852,8.889,112.12,112.02,50.6112]
[1644327487258,8.889,112.12,112.02,50.8612]
[1644327487461,8.889,112.12,112.03,7.95553703]
[1644327487654,8.889,112.12,112.03,13.95553703]
[1644327487853,8.889,112.12,112.05,13.3834]
[1644327488052,8.889,112.12,112.05,19.3834]
[1644327488252,8.889,112.12,112.05,19.6334]
[1644327488452,45.75799878,112.12,112.05,19.6334]
[1644327488654,45.75799878,112.12,112.05,6.25]
[1644327488853,45.75799878,112.12,112.03,27.34053703]
[1644327489057,46.00799878,112.12,112.03,19.385]
[1644327489953,46.00799878,112.12,112.04,7.67419615]
[1644327490158,45.75799878,112.12,112.04,13.67419615]
[1644327490353,45.75799878,112.12,112.04,6.0]
[1644327490554,12.82,112.11,112.04,6.0]
[1644327490753,12.82,112.11,112.04,0.024]
[1644327490953,12.82,112.11,112.02,0.024]
[1644327491553,12.82,112.11,112.02,6.66690755]
[1644327491756,12.82,112.11,112.03,0.024]
[1644327492554,18.82,112.11,112.03,0.024]
[1644327493756,19.07,112.11,112.03,13.4095]
[1644327493955,19.07,112.11,112.04,1.63776796]
[1644327494155,12.82,112.11,112.04,7.91176796]
[1644327494359,61.6329,112.13,112.04,61.24176796]
[1644327494656,48.8129,112.13,112.04,61.21776796]
[1644327494860,48.8129,112.13,112.05,0.024]
[1644327495058,48.8129,112.13,112.05,17.8668]
[1644327495258,48.8129,112.13,112.06,6.64290755]
[1644327495558,48.8129,112.13,112.06,12.66690755]
[1644327495757,48.8129,112.13,112.06,12.91690755]
[1644327495959,13.3828,112.16,112.06,12.89290755]
[1644327496157,60.7734,112.16,112.07,0.024]
[1644327497162,47.3906,112.16,112.07,0.024]
[1644327498762,47.3906,112.16,112.08,1.63776796]
[1644327498963,47.3906,112.16,112.08,1.66176796]
[1644327499164,47.3906,112.16,112.08,7.91176796]
[1644327499364,47.6406,112.16,112.08,7.91176796]
[1644327500667,47.3906,112.16,112.08,74.62106796]
[1644327500868,108.08294291,112.21,112.08,74.62106796]
[1644327501067,48.5857,112.21,112.09,0.024]
[1644327502071,102.96339459,112.21,112.09,0.024]
[1644327502469,96.96339459,112.21,112.09,0.024]
[1644327502870,96.96339459,112.21,112.12,6.64290755]
[1644327503068,96.96339459,112.21,112.12,6.66690755]
[1644327503267,96.96339459,112.21,112.12,6.91690755]
[1644327503670,102.96339459,112.21,112.12,6.91690755]
[1644327505172,54.5857,112.21,112.12,6.91690755]
[1644327506071,93.16942266,112.21,112.12,6.91690755]
[1644327507279,54.5857,112.21,112.12,6.91690755]
[1644327508275,48.5857,112.21,112.12,12.91690755]
[1644327508475,48.5857,112.21,112.12,26.29030755]
[1644327508875,48.5857,112.21,112.12,79.62030755]
[1644327509175,59.8711874,112.24,112.12,79.59630755]
[1644327509377,13.3728,112.24,112.13,0.024]
[1644327509577,13.3728,112.24,112.13,13.3959]
[1644327509781,13.3728,112.24,112.14,0.024]
[1644327509997,26.7322,112.24,112.14,0.024]
[1644327510397,26.7322,112.24,112.14,1.66176796]
[1644327510598,73.4119,112.24,112.14,7.66176796]
[1644327510799,73.6619,112.24,112.14,7.91176796]
[1644327511201,73.6619,112.24,112.14,1.91176796]
[1644327511400,73.6619,112.24,112.14,7.91176796]
[1644327511999,79.6619,112.24,112.14,7.91176796]
[1644327513204,79.4119,112.24,112.14,7.91176796]
[1644327514702,79.6619,112.24,112.14,21.28236796]
[1644327515906,79.6619,112.24,112.14,74.61236796]
[1644327516103,79.6619,112.24,112.14,21.28236796]
[1644327516304,79.6619,112.24,112.14,7.91176796]
[1644327516705,79.6619,112.24,112.14,1.91176796]
[1644327516911,79.6619,112.24,112.14,7.91176796]
[1644327518105,79.6619,112.24,112.14,61.24176796]
[1644327518106,79.4119,112.24,112.14,61.24176796]
[1644327518307,66.0391,112.24,112.14,61.24176796]
[1644327519109,112.06422501,112.24,112.14,7.91176796]
[1644327519307,125.43592501,112.24,112.14,1.66176796]
[1644327519507,125.43592501,112.24,112.14,7.66176796]
[1644327519708,125.43592501,112.24,112.14,1.66176796]
[1644327520210,125.68592501,112.24,112.14,1.66176796]
[1644327520611,125.68592501,112.24,112.14,1.91176796]
[1644327521009,79.6608,112.24,112.14,1.91176796]
[1644327522013,43.05187252,112.23,112.14,1.91176796]
[1644327522210,36.395,112.22,112.14,1.91176796]
[1644327522412,36.395,112.22,112.14,1.63776796]
[1644327523716,36.395,112.22,112.14,1.88776796]
[1644327524815,36.395,112.22,112.12,0.024]
[1644327525018,36.395,112.22,112.12,0.25]
[1644327525218,36.395,112.22,112.13,0.024]
[1644327525916,42.395,112.22,112.13,0.024]
[1644327526115,42.645,112.22,112.13,0.024]
[1644327526316,90.23883354,112.22,112.11,0.024]
[1644327527515,42.645,112.22,112.11,0.024]
[1644327528217,42.145,112.22,112.11,0.024]
[1644327529116,42.145,112.22,112.12,1.26895561]
[1644327529315,42.145,112.22,112.13,0.024]
[1644327531619,42.77756944,112.21,112.13,0.024]
[1644327531819,13.3758,112.2,112.13,0.024]
[1644327532020,79.9317,112.22,112.13,0.024]
[1644327533119,43.83947118,112.21,112.13,0.024]
[1644327533723,13.3773,112.19,112.13,0.024]
[1644327534119,13.3773,112.19,112.12,1.51895561]
[1644327534519,35.3408,112.22,112.12,1.51895561]
[1644327534723,22.5208,112.22,112.13,0.024]
[1644327535522,28.5208,112.22,112.13,0.024]
[1644327535719,35.8948,112.22,112.13,0.024]
[1644327536722,36.1448,112.22,112.13,0.024]
[1644327537321,35.8948,112.22,112.13,0.024]
[1644327537821,35.8948,112.22,112.13,13.397]
[1644327538025,35.8948,112.22,112.14,0.024]
[1644327538424,35.8948,112.22,112.14,6.88669928]
[1644327538623,35.8948,112.22,112.14,12.88669928]
[1644327538822,36.1448,112.22,112.14,7.13669928]
[1644327539023,36.1448,112.22,112.14,13.13669928]
[1644327539222,36.1448,112.22,112.14,7.13669928]
[1644327539423,36.1448,112.22,112.14,13.13669928]
[1644327539624,36.1448,112.22,112.14,12.88669928]
[1644327540023,36.1448,112.22,112.14,6.88669928]